bitfinex-derivatives/quotes_ETHF0:USTF0_20220103
["timestamp","ask_amount","ask_price","bid_price","bid_amount"]
[1641184745700,0.8962442,3793.6,3793.5,0.96783925]
[1641184747103,0.9728532,3793.6,3793.5,0.73784825]
[1641184747704,0.8962442,3793.6,3793.5,0.96783925]
[1641184748005,1.19502028,3793.8,3793.5,0.96783925]
[1641184748205,0.076609,3793.7,3793.5,0.96783925]
[1641184748403,1.19502028,3793.8,3793.5,0.96783925]
[1641184749606,1.19502028,3793.8,3793.5,0.73784825]
[1641184749607,0.076609,3793.7,3793.5,0.73784825]
[1641184750007,0.89617221,3793.6,3793.4,2.00479]
[1641184750405,0.89617221,3793.6,3793.5,0.73784463]
[1641184750807,1.19502028,3793.7,3793.5,0.73784463]
[1641184751008,1.19502028,3793.7,3793.6,0.229991]
[1641184751208,1.27162928,3793.7,3793.5,0.73784463]
[1641184751709,0.076609,3793.7,3793.5,0.73784463]
[1641184751908,1.19502028,3793.8,3793.4,2.00479]
[1641184752409,1.19502028,3793.8,3793.5,0.7378407]
[1641184752609,0.41664697,3793.6,3793.5,0.7378407]
[1641184753109,0.41664697,3793.6,3793.5,0.9678317]
[1641184753311,1.19502028,3793.8,3793.5,0.9678317]
[1641184755616,0.076609,3793.7,3793.5,0.7378407]
[1641184756515,1.19502028,3793.9,3793.6,0.229991]
[1641184757919,2.00479,3794.2,3793.6,0.229991]
[1641184757920,3.49919994,3794.2,3793.8,1.5]
[1641184758120,1.49440994,3794.2,3793.5,2.01389617]
[1641184758522,1.49440994,3794.2,3793.8,2.00479]
[1641184758921,1.78379676,3794.4,3793.8,2.00479]
[1641184759122,3.49919994,3794.6,3793.8,2.00479]
[1641184759323,3.49919994,3794.6,3793.9,0.73755057]
[1641184760222,2.00479,3794.6,3794.5,0.89447213]
[1641184760423,2.081399,3794.6,3794.5,0.89447213]
[1641184761329,2.00479,3794.6,3794.5,0.229991]
[1641184763525,2.081399,3794.6,3794.3,0.128157]
[1641184763726,2.081399,3794.6,3794.4,0.229991]
[1641184764025,2.00479,3794.6,3794.5,0.89457369]
[1641184765226,2.081399,3794.6,3794.5,0.89457369]
[1641184765827,2.00479,3794.6,3794.5,0.89457369]
[1641184766529,1.49440994,3794.7,3794.5,0.89457369]
[1641184767029,3.49919994,3794.7,3794.5,0.89457369]
[1641184767931,0.076609,3794.6,3794.5,0.89457369]
[1641184768533,2.00479,3794.7,3794.6,0.89457369]
[1641184769133,3.49919994,3794.7,3794.5,1.12456469]
[1641184769333,1.49440994,3794.7,3794.5,1.12456469]
[1641184769536,1.49440994,3794.7,3794.5,0.89457369]
[1641184770036,1.49440994,3794.7,3794.5,1.12456469]
[1641184770635,0.076609,3794.6,3794.5,0.89457369]
[1641184772539,1.49440994,3794.7,3794.5,1.12456469]
[1641184773240,0.076609,3794.6,3794.5,0.89457369]
[1641184773639,1.49440994,3794.7,3794.5,0.89457369]
[1641184773839,1.49440994,3794.7,3794.5,1.12456469]
[1641184774040,1.49440994,3794.7,3794.5,0.89457369]
[1641184774740,0.076609,3794.6,3794.5,0.89457369]
[1641184775243,1.49440994,3794.7,3794.5,0.229991]
[1641184775445,1.19457876,3794.7,3794.4,1.19311132]
[1641184775843,0.076609,3794.6,3794.4,1.19311132]
[1641184776545,0.076609,3794.6,3794.5,1.19311132]
[1641184777442,1.19457876,3794.7,3794.5,1.42310232]
[1641184778043,0.076609,3794.6,3794.4,1.19311132]
[1641184778644,1.19457876,3794.7,3794.5,0.229991]
[1641184778844,1.49440994,3794.9,3794.4,1.19311132]
[1641184778845,1.19457876,3794.6,3794.4,1.19311132]
[1641184779044,1.27118776,3794.6,3794.4,1.19311132]
[1641184779245,1.19457876,3794.6,3794.4,1.19311132]
[1641184779647,1.19457876,3794.6,3794.5,0.229991]
[1641184780348,1.19457876,3794.7,3794.5,0.229991]
[1641184780846,1.19457876,3794.7,3794.5,1.42310232]
[1641184781747,0.076609,3794.6,3794.5,1.19311132]
[1641184782547,1.19457876,3794.7,3794.5,1.42310232]
[1641184783148,1.19457876,3794.7,3794.5,30.66877514]
[1641184783348,1.19457876,3794.7,3794.6,2.00479]
[1641184784349,0.89583214,3794.9,3794.6,2.75188758]
[1641184784549,0.89583214,3794.9,3794.7,0.229991]
[1641184785350,1.19457876,3795.1,3794.7,0.229991]
[1641184785552,21.60799,3795.5,3794.7,0.229991]
[1641184792561,2.00479,3795.5,3794.7,0.229991]
[1641184799065,13.33479,3795.5,3794.1,0.88974588]
[1641184799265,1.5,3795.0,3794.1,0.88974588]
[1641184799566,2.00479,3794.5,3794.1,0.88974588]
[1641184800168,2.00479,3794.5,3793.9,0.128157]
[1641184800367,2.00479,3794.5,3793.8,0.88974588]
[1641184801170,0.5408,3795.0,3793.8,0.88974588]
[1641184801371,17.2389,3795.3,3793.8,0.88974588]
[1641184801573,2.00479,3795.1,3794.2,2.00479]
[1641184803477,2.00479,3795.1,3794.3,0.128157]
[1641184804275,2.00479,3795.1,3794.2,2.00479]
[1641184807579,2.00479,3795.1,3794.3,0.128157]
[1641184811283,2.00479,3795.1,3794.3,0.93586068]
[1641184811884,2.00479,3795.1,3794.3,0.128157]
[1641184812085,2.00479,3795.1,3794.2,2.00479]
[1641184812986,2.00479,3795.1,3794.3,0.128157]
[1641184813590,0.40939039,3795.0,3794.8,0.88974588]
[1641184813790,0.48599939,3795.0,3794.8,1.56094588]
[1641184813987,0.40939039,3795.0,3794.8,1.56094588]
[1641184814388,0.40939039,3795.0,3794.9,0.88974588]
[1641184815691,0.48599939,3795.0,3794.8,0.6712]
[1641184815889,0.48599939,3795.0,3794.8,0.901191]
[1641184816091,0.40939039,3795.0,3794.8,0.901191]
[1641184816489,0.40939039,3794.9,3794.8,0.901191]
[1641184816689,0.48599939,3794.9,3794.8,0.6712]
[1641184816889,0.48599939,3794.9,3794.6,0.88974588]
[1641184817292,0.40939039,3795.0,3794.7,0.229991]
[1641184817694,0.076609,3794.9,3794.6,0.88974588]
[1641184819396,0.40939039,3794.8,3794.4,0.88974588]
[1641184820096,0.8946712,3794.5,3794.4,0.88974588]
[1641184820297,0.9712802,3794.5,3794.4,0.88974588]
[1641184820597,0.8946712,3794.5,3794.4,0.88974588]
[1641184821400,0.8946712,3794.5,3794.4,1.11973688]
[1641184822701,0.8946712,3794.6,3794.4,1.11973688]
[1641184823706,0.076609,3794.5,3794.4,0.88974588]
[1641184824603,0.8946712,3794.6,3794.4,0.229991]
[1641184826105,0.8946712,3794.6,3794.5,0.89369548]
[1641184826504,0.40939039,3795.0,3794.5,0.89369548]
[1641184826708,0.40939039,3795.0,3794.4,0.89369548]
[1641184827607,0.89476507,3794.5,3794.4,0.89369548]
[1641184827807,0.89476507,3794.5,3794.4,1.12368648]
[1641184829613,0.97137407,3794.5,3794.4,0.89369548]
[1641184830013,0.89476507,3794.5,3794.4,1.12368648]
[1641184830515,0.97137407,3794.5,3794.4,0.89369548]
[1641184830913,0.89476507,3794.5,3794.4,0.89369548]
[1641184831513,0.89476507,3794.5,3794.4,0.229991]
[1641184831718,0.89476507,3794.7,3794.3,3.19111784]
[1641184833219,2.51712107,3794.6,3794.2,1.18632784]
[1641184833419,1.5,3794.4,3793.6,1.77235952]
[1641184833618,1.5,3794.2,3793.6,1.77235952]
[1641184833917,1.31750917,3794.5,3793.6,1.77235952]
[1641184833918,1.5,3794.4,3793.6,1.77235952]
[1641184834119,1.31750917,3794.5,3793.6,1.77235952]
[1641184834320,2.00479,3793.9,3793.6,1.77235952]
[1641184834519,0.076609,3793.8,3793.6,1.77235952]
[1641184835323,0.076609,3793.8,3793.6,0.229991]
[1641184835522,2.00479,3793.9,3793.6,0.229991]
[1641184835723,0.076609,3793.8,3793.5,0.3857]
[1641184839626,0.076609,3793.8,3793.6,0.229991]
[1641184839827,1.49128046,3794.5,3793.5,0.3857]
[1641184840526,2.00479,3793.9,3793.5,0.3857]
[1641184842732,2.00479,3794.3,3793.5,0.3857]
[1641184844134,0.42976957,3794.2,3793.6,1.19316184]
[1641184844334,0.42976957,3794.2,3793.6,1.77136184]
[1641184845435,0.42976957,3794.2,3793.9,1.19316184]
[1641184845436,1.19308036,3794.1,3793.9,1.19316184]
[1641184845636,1.26968936,3794.1,3793.9,1.19316184]
[1641184846036,0.076609,3794.1,3793.5,1.57886184]
[1641184847738,0.076609,3794.1,3793.6,1.19316184]
[1641184847937,0.076609,3794.1,3793.6,1.90476184]
[1641184853645,0.97083475,3794.1,3793.9,0.89461594]
[1641184855946,0.97083475,3794.1,3793.9,1.12460694]
[1641184856145,0.89422575,3794.1,3794.0,0.89461594]
[1641184856948,0.89422575,3794.2,3794.0,0.89461594]
[1641184857449,0.076609,3794.1,3794.0,0.89461594]
[1641184858449,0.89422575,3794.2,3794.0,1.12460694]
[1641184859451,0.076609,3794.1,3794.0,0.89461594]
[1641184859651,0.89422575,3794.2,3794.0,0.89461594]
[1641184859852,0.89422575,3794.2,3794.1,0.229991]
[1641184860152,0.89422575,3794.2,3794.0,0.89461594]
[1641184860853,0.97083475,3794.2,3794.0,0.89461594]
[1641184861154,0.89422575,3794.2,3794.1,0.229991]
[1641184861553,0.89422575,3794.2,3794.0,0.89461594]
[1641184861754,0.97083475,3794.2,3794.0,0.89461594]
[1641184861954,0.89422575,3794.2,3794.0,0.89461594]
[1641184862554,0.076609,3794.1,3794.0,0.89461594]
[1641184863656,0.89422575,3794.2,3794.0,1.12460694]
[1641184863857,0.076609,3794.1,3794.0,0.89461594]
[1641184864757,0.076609,3794.1,3793.8,1.19316184]
[1641184865157,0.89422575,3794.2,3793.9,0.229991]
[1641184866959,0.076609,3794.1,3793.8,1.19316184]
[1641184867260,0.076609,3794.1,3793.7,1.32131884]
[1641184868661,0.076609,3794.1,3793.8,1.19316184]
[1641184868862,0.076609,3794.1,3793.9,0.229991]
[1641184869062,0.076609,3794.1,3793.8,1.19316184]
[1641184871267,0.076609,3794.1,3793.7,1.19316184]
[1641184873768,0.89422575,3794.2,3793.7,1.19316184]
[1641184877670,0.89422575,3794.2,3793.8,0.79222083]
[1641184878475,2.89901575,3794.3,3793.8,1.98538267]
[1641184878976,0.89422575,3794.3,3793.8,1.98538267]
[1641184879373,0.89422575,3794.3,3793.9,0.79222083]
[1641184880373,1.19308036,3794.6,3793.9,0.79222083]
[1641184880374,2.08730611,3794.6,3793.9,0.79222083]
[1641184880574,0.89422575,3794.6,3794.2,2.00479]
[1641184881576,0.89422575,3794.7,3794.4,0.89333165]
[1641184881777,0.89422575,3794.7,3794.5,0.229991]
[1641184882175,0.076609,3794.6,3794.4,0.89333165]
[1641184882577,0.97083475,3794.6,3794.4,0.89333165]
[1641184882976,0.89422575,3794.6,3794.5,0.229991]
[1641184883378,0.89422575,3794.7,3794.5,0.884391]
[1641184883580,0.89422575,3794.7,3794.5,1.012548]
[1641184884277,1.19308036,3795.0,3794.5,1.012548]
[1641184884479,1.49128046,3794.9,3794.6,1.19316184]
[1641184884779,0.076609,3794.8,3794.6,1.19316184]
[1641184885780,1.49128046,3794.9,3794.7,0.229991]
[1641184886281,1.56788946,3794.9,3794.7,0.229991]
[1641184886478,1.56788946,3794.9,3794.6,1.19316184]
[1641184886681,0.43051135,3794.7,3794.6,1.19316184]
[1641184886879,0.43051135,3794.7,3794.6,1.42315284]
[1641184887579,0.43051135,3794.8,3794.6,1.42315284]
[1641184887879,0.50712035,3794.8,3794.6,1.19316184]
[1641184888379,0.076609,3794.8,3794.6,1.19316184]
[1641184888881,2.00479,3794.7,3794.6,1.19316184]
[1641184889278,2.43530135,3794.7,3794.6,0.229991]
[1641184890080,2.43530135,3794.7,3794.2,2.00479]
[1641184890378,2.43530135,3794.7,3794.2,2.132947]
[1641184890881,0.89643603,3794.3,3794.2,2.132947]
[1641184891079,0.89643603,3794.3,3794.2,2.234781]
[1641184893081,0.43051135,3794.6,3794.2,2.234781]
[1641184893582,0.89643339,3794.3,3794.2,2.234781]
[1641184894181,0.89643339,3794.3,3794.2,3.02652675]
[1641184894390,0.89643339,3794.3,3794.2,2.234781]
[1641184895483,2.00479,3794.7,3794.2,2.234781]
[1641184896285,2.00479,3794.7,3794.3,0.89274247]
[1641184897585,3.50479,3794.7,3794.3,0.89274247]
[1641184897787,1.5,3794.4,3793.8,0.7470354]
[1641184897986,0.122356,3794.3,3794.2,0.89287615]
[1641184898184,0.122356,3794.3,3793.4,3.77714952]
[1641184898185,0.198965,3794.3,3793.4,3.77714952]
[1641184898787,0.076609,3794.3,3793.5,0.78621279]
[1641184898987,2.00479,3793.9,3793.5,0.78621279]
[1641184899889,2.00479,3793.9,3793.3,0.78621279]
[1641184900389,0.43694624,3794.3,3793.3,0.78621279]
[1641184901090,2.00479,3793.9,3793.0,2.79100279]
[1641184901289,2.00479,3793.9,3793.1,0.128157]
[1641184901688,2.00479,3793.9,3793.4,0.78621279]
[1641184902092,2.00479,3793.9,3793.1,0.91436979]
[1641184902494,2.00479,3793.9,3793.1,2.55857231]
[1641184902891,2.00479,3793.9,3793.2,0.78621279]
[1641184903091,2.00479,3794.3,3793.5,2.00479]
[1641184903693,2.00479,3794.3,3793.6,0.78621279]
[1641184904995,0.122356,3794.5,3793.6,0.78621279]
[1641184905198,1.63772881,3794.2,3793.6,2.55857231]
[1641184905595,1.63772881,3794.2,3793.6,1.77235952]
[1641184905998,1.63772881,3794.2,3793.7,0.78621279]
[1641184906197,1.19190318,3794.1,3793.7,0.78621279]
[1641184907299,1.19190318,3794.1,3793.6,0.78621279]
[1641184907497,1.19190318,3794.1,3793.8,0.78621279]
[1641184907697,0.076609,3794.0,3793.8,0.78621279]
[1641184907897,0.076609,3794.0,3793.7,0.78621279]
[1641184908197,0.076609,3794.0,3793.5,3.77714952]
[1641184908398,1.19190318,3794.1,3793.8,0.78599197]
[1641184908599,0.076609,3794.0,3793.6,2.55835149]
[1641184908799,0.076609,3794.0,3793.6,1.77235952]
[1641184909201,0.076609,3794.0,3793.7,0.78599275]
[1641184911200,0.44583275,3793.9,3793.7,0.78599275]
[1641184911400,0.076609,3793.8,3793.7,0.78599275]
[1641184913102,0.076609,3793.8,3793.6,0.78599275]
[1641184913303,0.076609,3793.8,3793.6,1.01598375]
[1641184913502,0.076609,3793.8,3793.6,0.78599275]
[1641184913703,1.19190318,3794.1,3793.6,0.78599275]
[1641184919107,1.19190318,3794.0,3793.6,0.78599275]
[1641184920507,0.89657186,3793.7,3793.6,0.78599275]
[1641184920710,0.89657186,3793.7,3793.6,1.01598375]
[1641184921309,0.89657186,3793.8,3793.6,1.01598375]
[1641184922412,1.19190318,3794.1,3793.6,1.01598375]
[1641184922613,0.89657186,3794.2,3793.6,2.20730473]
[1641184922814,0.89657186,3794.2,3793.6,1.97731373]
[1641184923013,0.89657186,3794.2,3793.7,0.78599275]
[1641184923415,0.89657186,3794.1,3793.8,0.89362022]
[1641184923817,0.076609,3794.0,3793.8,0.89362022]
[1641184924415,0.076609,3794.0,3793.9,0.89362022]
[1641184924617,0.89657186,3794.1,3793.9,1.12361122]
[1641184924817,0.89657186,3794.1,3793.9,1.64421122]
[1641184925419,0.89657186,3794.1,3794.0,0.78583388]
[1641184927223,0.89657186,3794.6,3794.0,0.78583388]
[1641184928423,0.89657186,3794.6,3794.4,0.89317573]
[1641184928622,0.076609,3794.5,3794.4,0.89317573]
[1641184929625,0.076609,3794.5,3794.1,1.19090097]
[1641184929827,0.641809,3794.5,3794.2,1.19090097]
[1641184931026,2.00479,3794.3,3794.2,1.19090097]
[1641184931427,2.97797086,3794.3,3794.2,1.19090097]
[1641184931628,2.97797086,3794.3,3793.9,1.19090097]
[1641184932729,2.90136186,3794.3,3793.9,1.19090097]
[1641184933131,2.90136186,3794.3,3794.0,0.78578321]
[1641184933930,0.076609,3794.2,3794.0,1.97668418]
[1641184934430,0.076609,3794.2,3794.0,1.19090097]
[1641184935231,0.076609,3794.2,3793.9,1.19090097]
[1641184935431,0.076609,3794.2,3794.0,0.229991]
[1641184935632,0.076609,3794.2,3793.9,1.19090097]
[1641184935832,0.076609,3794.2,3794.0,0.78584233]
[1641184936131,0.076609,3794.2,3794.0,1.19090097]
[1641184936632,0.076609,3794.2,3793.8,1.19090097]
[1641184937332,2.90136186,3794.3,3793.9,0.78587502]
[1641184939034,2.00479,3794.3,3793.9,1.97677599]
[1641184939435,2.00479,3794.3,3794.0,0.78587502]
[1641184939635,0.076609,3794.2,3794.0,0.78587502]
[1641184940839,2.00479,3794.3,3794.0,1.01586602]
[1641184941135,2.00479,3794.3,3794.0,0.78587502]
[1641184942138,2.00479,3794.3,3794.1,0.229991]
[1641184942839,0.076609,3794.2,3794.0,0.78587502]
[1641184943038,2.00479,3794.3,3794.0,1.01586602]
[1641184944041,2.00479,3794.3,3794.0,2.20676699]
[1641184944442,2.00479,3794.3,3794.0,1.42089197]
[1641184944744,0.89657186,3794.5,3794.0,1.42089197]
[1641184945442,0.89657186,3794.5,3794.1,0.78600517]
[1641184946046,2.00479,3794.3,3794.1,0.78600517]
[1641184946243,0.076609,3794.2,3794.0,1.19090097]
[1641184946643,2.00479,3794.3,3794.0,1.42089197]
[1641184947343,0.076609,3794.2,3794.0,1.42089197]
[1641184947542,0.076609,3794.2,3794.1,0.78606301]
[1641184947945,2.00479,3794.3,3794.1,1.01605401]
[1641184948648,0.076609,3794.2,3794.1,0.78606301]
[1641184948846,2.00479,3794.3,3794.1,1.01605401]
[1641184949448,0.076609,3794.2,3794.1,0.78606301]
[1641184950148,2.00479,3794.3,3794.1,1.01605401]
[1641184950650,0.076609,3794.2,3794.1,0.78606301]
[1641184951449,0.076609,3794.2,3794.0,1.19090097]
[1641184951851,0.076609,3794.2,3793.9,1.19090097]
[1641184952051,0.076609,3794.2,3794.1,0.78616921]
[1641184952453,0.076609,3794.2,3794.0,0.78616921]
[1641184952754,0.076609,3794.2,3793.9,1.19090097]
[1641184952952,0.076609,3794.2,3794.0,0.229991]
[1641184953152,0.076609,3794.2,3794.0,1.01615829]
[1641184953553,2.00479,3794.3,3794.0,1.01615829]
[1641184955655,0.076609,3794.2,3794.0,0.78616729]
[1641184955854,2.00479,3794.3,3794.0,0.78616729]
[1641184956761,0.076609,3794.2,3794.0,0.78616729]
[1641184956960,2.00479,3794.3,3794.0,0.78616729]
[1641184956961,2.00479,3794.3,3794.1,0.229991]
[1641184957161,2.00479,3794.3,3794.0,0.78616729]
[1641184957361,0.89657186,3794.2,3794.1,1.19090097]
[1641184957860,0.89657186,3794.2,3794.1,1.42089197]
[1641184958061,0.89657186,3794.2,3794.1,2.20713744]
[1641184958361,0.89657186,3794.2,3794.1,1.42089197]
[1641184958761,0.89657186,3794.2,3794.1,2.2071344]
[1641184959364,0.89657186,3794.2,3794.1,1.42089197]
[1641184959562,0.97318086,3794.2,3794.1,1.97716686]
[1641184959965,0.89657186,3794.2,3794.1,2.20715786]
[1641184961464,0.97318086,3794.2,3794.1,1.97716686]
[1641184961867,0.89657186,3794.2,3794.1,2.20715786]
[1641184962666,0.89657186,3794.3,3794.1,1.01625689]
[1641184962865,0.97318086,3794.3,3794.1,1.01625689]
[1641184963265,0.89657186,3794.3,3794.1,1.01625689]
[1641184963466,0.89657186,3794.3,3794.1,0.229991]
[1641184963866,0.89657186,3794.3,3794.2,1.18725693]
[1641184964066,0.97318086,3794.3,3794.2,1.18725693]
[1641184964966,0.89657186,3794.3,3794.2,1.18725693]
[1641184965868,0.89657186,3794.3,3794.2,1.97341558]
[1641184967867,0.89657186,3794.3,3794.2,0.78615865]
[1641184968069,0.89657186,3794.5,3794.2,0.78615865]
[1641184968468,0.89657186,3794.5,3794.3,0.229991]
[1641184968768,0.89657186,3794.5,3794.3,0.78615865]
[1641184969170,0.89657186,3794.5,3794.0,2.00479]
[1641184969171,0.89657186,3794.5,3794.4,1.41778491]
[1641184969470,0.89657186,3794.5,3794.4,2.20394356]
[1641184970968,0.97318086,3794.5,3794.4,0.78615865]
[1641184971170,0.076609,3794.5,3794.4,0.78615865]
[1641184971672,0.076609,3794.5,3794.1,0.78615865]
[1641184971870,0.076609,3794.5,3794.0,2.00479]
[1641184972072,0.89657186,3794.6,3794.0,2.00479]
[1641184972270,0.89657186,3794.6,3794.2,0.78582902]
[1641184972471,0.89657186,3794.6,3794.1,0.78582902]
[1641184972672,0.89657186,3794.5,3794.1,0.78582902]
[1641184972971,0.89657186,3794.5,3794.4,1.18758656]
[1641184973171,0.89657186,3794.5,3794.4,1.41757756]
[1641184973372,0.97318086,3794.5,3794.4,0.78582902]
[1641184973572,0.076609,3794.5,3794.4,0.78582902]
[1641184974071,0.076609,3794.5,3794.1,0.78582902]
[1641184974471,0.89657186,3794.6,3794.1,0.78582902]
[1641184974674,0.89657186,3794.6,3794.4,0.78582902]
[1641184974871,0.89657186,3794.6,3794.2,0.78582902]
[1641184975871,0.89657186,3794.6,3794.0,2.00479]
[1641184976071,0.89657186,3794.6,3794.3,0.78571159]
[1641184976272,0.89657186,3794.6,3794.5,1.18785572]
[1641184976671,0.97318086,3794.6,3794.5,1.18785572]
[1641184977072,0.89657186,3794.6,3794.5,1.18785572]
[1641184977774,0.97318086,3794.6,3794.5,1.18785572]
[1641184978575,0.89657186,3794.6,3794.5,1.41784672]
[1641184979576,0.97318086,3794.6,3794.5,1.18785572]
[1641184980779,1.19190318,3794.8,3794.4,1.18785572]
[1641184981676,1.19190318,3794.8,3794.4,1.31601272]
[1641184982077,1.19190318,3794.8,3794.4,1.18785572]
[1641184982777,1.19190318,3794.8,3794.5,0.89038222]
[1641184982778,0.89486106,3794.6,3794.5,0.89038222]
[1641184983179,0.89486106,3794.6,3794.5,1.12037322]
[1641184983778,0.89486106,3794.6,3794.5,1.24853022]
[1641184984079,1.637212,3794.8,3794.5,0.358148]
[1641184984278,1.637212,3794.8,3794.5,1.1439328]
[1641184984680,1.637212,3794.8,3794.5,0.358148]
[1641184984978,0.076609,3794.7,3794.5,0.358148]
[1641184985281,0.076609,3794.7,3794.5,0.128157]
[1641184985779,0.97178069,3794.7,3794.5,0.128157]
[1641184985979,0.97178069,3794.7,3794.5,1.31601272]
[1641184986380,0.89517169,3794.7,3794.5,1.54600372]
[1641184989083,0.97178069,3794.7,3794.5,1.41784672]
[1641184989685,0.89517169,3794.7,3794.5,1.41784672]
[1641184990389,0.076609,3794.6,3794.5,1.18785572]
[1641184990888,0.076609,3794.6,3794.5,1.97347635]
[1641184991089,0.076609,3794.6,3794.5,1.18785572]
[1641184991289,0.89517169,3794.7,3794.5,1.97345269]
[1641184991488,0.89517169,3794.7,3794.6,0.229991]
[1641184991788,0.89517169,3794.7,3794.5,1.18785572]
[1641184992389,0.89517169,3794.7,3794.5,1.41784672]
[1641184995593,0.97178069,3794.7,3794.5,1.41784672]
[1641184995792,0.97178069,3794.7,3794.5,1.18785572]
[1641184996391,0.89517169,3794.7,3794.5,1.41784672]
[1641184996891,0.97178069,3794.7,3794.5,1.41784672]
[1641184997091,0.89517169,3794.7,3794.5,1.41784672]
[1641184997290,0.89517169,3794.7,3794.5,1.18785572]
[1641184998294,0.076609,3794.6,3794.5,1.18785572]
[1641184998694,0.89517169,3794.7,3794.5,1.41784672]
[1641184998892,0.89517169,3794.7,3794.5,1.18785572]
[1641184999193,0.076609,3794.6,3794.5,1.18785572]
[1641184999394,0.89517169,3794.7,3794.5,1.18785572]
[1641185000095,0.076609,3794.6,3794.5,1.18785572]
[1641185001396,0.076609,3794.6,3794.5,0.89121151]
[1641185002195,0.52175164,3794.6,3794.5,0.89121151]
[1641185004801,0.52175164,3794.6,3794.5,1.12120251]
[1641185005002,0.44514264,3794.6,3794.5,0.89121151]
[1641185005803,0.44514264,3794.6,3794.5,0.229991]
[1641185006203,0.52175164,3794.6,3794.3,1.18785572]
[1641185006903,0.076609,3794.6,3794.3,1.18785572]
[1641185008203,0.89553717,3794.4,3794.3,1.18785572]
[1641185008404,0.97214617,3794.4,3794.3,1.18785572]
[1641185008606,0.89553717,3794.4,3794.3,1.97373038]
[1641185009105,0.89553717,3794.4,3794.3,1.01586566]
[1641185010508,0.89553717,3794.5,3794.3,1.01586566]
[1641185011007,0.89553717,3794.5,3794.3,0.229991]
[1641185011311,0.89553717,3794.5,3794.4,1.18803859]
[1641185012207,0.89553717,3794.5,3794.4,1.97391325]
[1641185012408,0.97214617,3794.5,3794.4,1.97391325]
[1641185015410,0.89553717,3794.5,3794.4,2.20390425]
[1641185016213,1.19190318,3794.8,3794.4,1.01586566]
[1641185016412,1.19190318,3794.8,3794.4,0.78587466]
[1641185016613,1.19190318,3794.7,3794.2,0.78587466]
[1641185017513,0.89625772,3794.4,3794.1,0.91403166]
[1641185017715,0.89625772,3794.4,3794.3,0.78587466]
[1641185018014,0.89625772,3794.4,3794.2,1.01586566]
[1641185018313,0.89625772,3794.4,3794.3,0.78587466]
[1641185018913,0.89625772,3794.4,3794.2,1.01586566]
[1641185019113,0.89625772,3794.4,3794.3,0.78587466]
[1641185019515,0.89625772,3794.4,3794.2,1.01586566]
[1641185021220,0.076609,3794.3,3794.2,0.78587466]
[1641185021721,0.076609,3794.3,3794.1,0.91403166]
[1641185021924,0.89625772,3794.4,3794.2,0.229991]
[1641185022422,0.89625772,3794.4,3794.2,1.01586566]
[1641185023925,0.89625772,3794.4,3794.2,1.81286566]
[1641185024128,1.19190318,3794.7,3794.2,1.81286566]
[1641185024327,2.22977484,3795.5,3794.6,2.00479]
[1641185025127,2.22977484,3795.5,3794.7,0.78587466]
[1641185026130,1.78379676,3795.4,3794.7,0.78587466]
[1641185027932,0.74702844,3795.6,3794.7,0.78587466]
[1641185028334,4.23456484,3796.0,3795.3,2.00479]
[1641185028534,4.23456484,3796.0,3795.4,0.128157]
[1641185028735,4.23456484,3796.0,3795.4,0.91403166]
[1641185029536,2.00479,3796.0,3795.4,0.91403166]
[1641185032039,2.00479,3796.6,3795.4,0.91403166]
[1641185032841,2.00479,3796.6,3795.6,27.35416226]
[1641185034443,2.00479,3796.6,3795.4,0.128157]
[1641185034642,5.05245339,3796.7,3795.7,0.91478491]
[1641185035342,2.00479,3796.4,3795.6,2.00479]
[1641185036944,2.00479,3796.4,3795.7,0.91435623]
[1641185037545,2.00479,3796.4,3795.7,28.25154662]
[1641185037743,15.958,3796.8,3795.7,27.33719039]
[1641185038143,15.958,3796.8,3795.8,0.91396778]
[1641185038343,15.958,3796.8,3795.8,2.41396778]
[1641185038744,1.18887754,3796.2,3795.9,0.91396778]
[1641185038943,1.18887754,3796.2,3796.0,0.229991]
[1641185039345,1.18887754,3796.2,3796.1,2.00479]
[1641185039644,1.18887754,3796.2,3796.1,2.78239]
[1641185039844,1.48614141,3796.5,3796.1,2.78239]
[1641185040047,1.48614141,3796.5,3796.2,0.128157]
[1641185040645,17.74131963,3796.8,3796.2,0.128157]
[1641185040847,15.2523,3797.0,3796.2,0.128157]
[1641185041446,2.00479,3797.3,3796.5,2.00479]
[1641185042048,21.83808317,3797.7,3796.5,2.00479]
[1641185043451,21.83808317,3797.7,3797.3,2.00479]
[1641185043650,5.26648317,3797.7,3797.3,2.67589]
[1641185054873,0.89031128,3798.0,3797.3,2.67589]
[1641185056175,5.26583526,3798.1,3797.3,2.67589]
[1641185066990,1.48614141,3797.9,3797.8,0.88416791]
[1641185067989,1.86390078,3797.9,3797.8,1.11415891]
[1641185068590,1.94050978,3797.9,3797.8,1.11415891]
[1641185068789,1.86390078,3797.9,3797.8,0.229991]
[1641185068990,1.86390078,3798.0,3797.8,0.229991]
[1641185069190,1.86390078,3798.0,3797.6,1.17803099]
[1641185069791,1.86390078,3798.0,3797.8,2.00479]
[1641185069992,1.86390078,3798.0,3797.9,0.229991]
[1641185070191,1.94050978,3798.0,3797.8,2.00479]
[1641185070692,1.86390078,3798.0,3797.9,0.229991]
[1641185070994,1.86390078,3798.0,3797.8,2.00479]
[1641185071192,5.26583526,3798.1,3797.8,2.00479]
[1641185071193,0.37775937,3797.9,3797.8,3.18282099]
[1641185071594,0.45436837,3797.9,3797.8,3.18282099]
[1641185071794,1.40242437,3797.9,3797.8,1.17803099]
[1641185071992,2.524665,3797.9,3797.8,1.17803099]
[1641185072194,1.024665,3797.9,3797.3,2.00479]
[1641185072794,0.902309,3797.9,3797.3,2.132947]
[1641185077801,0.8257,3797.9,3797.3,2.132947]
[1641185078001,17.30552531,3798.1,3797.3,2.132947]
[1641185080908,16.59583526,3798.1,3797.3,2.132947]
[1641185083609,16.59583526,3798.1,3797.3,2.00479]
[1641185085717,11.33,3797.6,3796.3,0.88077817]
[1641185085915,2.00479,3797.3,3796.4,2.00479]
[1641185086116,5.26705183,3797.2,3796.4,2.91660952]
[1641185086415,5.26705183,3797.2,3796.4,2.00479]
[1641185086616,5.26705183,3797.2,3796.5,0.128157]
[1641185089430,5.26705183,3797.2,3796.5,1.04093736]
[1641185091132,0.88795045,3796.8,3796.5,1.04093736]
[1641185091333,0.88795045,3796.8,3796.6,0.229991]
[1641185091830,0.88795045,3796.8,3796.6,1.14277136]
[1641185093230,0.96455945,3796.8,3796.6,1.14277136]
[1641185093632,0.88795045,3796.8,3796.6,1.14277136]
[1641185095534,0.39001071,3797.2,3796.6,1.14277136]
[1641185095535,0.88795045,3796.7,3796.6,1.14277136]
[1641185096336,1.1839816,3797.0,3796.6,2.02823871]